fUSD/lending_fUSD_20260513
["ID","MTS","AMOUNT","RATE_DAILY","PERIOD"]
[422149584,1778623841000,-3006.69312586,0.0002,2]
[422149588,1778623841000,-240.0,0.0002,2]
[422149592,1778623841000,-510.0,0.0002,2]
[422149590,1778623841000,-178.0,0.0002,2]
[422149591,1778623841000,-174.0,0.0002,2]
[422149593,1778623841000,-333.90539671,0.0002,2]
[422149594,1778623841000,-150.0,0.0002,10]
[422149537,1778623841000,-500.0,0.00019178,2]
[422149579,1778623841000,-541.3,0.00019968,2]
[422149562,1778623841000,-200.0,0.00019467,2]
[422149582,1778623841000,-200.0,0.0002,2]
[422149572,1778623841000,-1353.0,0.00019467,2]
[422149573,1778623841000,-3540.0,0.00019467,2]
[422149536,1778623841000,-500.0,0.00019178,2]
[422149539,1778623841000,-500.0,0.00019178,2]
[422149538,1778623841000,-500.0,0.00019178,2]
[422149548,1778623841000,-500.0,0.00019178,2]
[422149545,1778623841000,-500.0,0.00019178,2]
[422149543,1778623841000,-500.0,0.00019178,2]
[422149541,1778623841000,-500.0,0.00019178,2]
[422149544,1778623841000,-500.0,0.00019178,2]
[422149546,1778623841000,-500.0,0.00019178,2]
[422149542,1778623841000,-500.0,0.00019178,2]
[422149549,1778623841000,-500.0,0.00019178,2]
[422149551,1778623841000,-500.0,0.00019178,2]
[422149552,1778623841000,-500.0,0.00019178,2]
[422149540,1778623841000,-500.0,0.00019178,2]
[422149560,1778623841000,-150.0,0.00019467,2]
[422149570,1778623841000,-243.653,0.00019467,2]
[422149563,1778623841000,-219.0,0.00019467,2]
[422149559,1778623841000,-628.0,0.000194,2]
[422149558,1778623841000,-1000.0,0.000194,2]
[422149555,1778623841000,-2036.65,0.00019178,2]
[422149557,1778623841000,-308.0,0.000194,2]
[422149571,1778623841000,-926.0,0.00019467,2]
[422149554,1778623841000,-500.0,0.00019178,2]
[422149561,1778623841000,-150.0,0.00019467,2]
[422149556,1778623841000,-579.61,0.000192,2]
[422149550,1778623841000,-500.0,0.00019178,2]
[422149553,1778623841000,-500.0,0.00019178,2]
[422149643,1778623842000,-4961.46,0.00020548,2]
[422149641,1778623842000,-4961.46,0.00020548,2]
[422149640,1778623842000,-4961.46,0.00020548,2]
[422149638,1778623842000,-4961.46,0.00020548,2]
[422149632,1778623842000,-4961.46,0.00020548,2]
[422149628,1778623842000,-4961.46,0.00020548,2]
[422149633,1778623842000,-4961.46,0.00020548,2]
[422149631,1778623842000,-4961.46,0.00020548,2]
[422149629,1778623842000,-4961.46,0.00020548,2]
[422149630,1778623842000,-4961.46,0.00020548,2]
[422149626,1778623842000,-4961.46,0.00020548,2]
[422149627,1778623842000,-4961.46,0.00020548,2]
[422149634,1778623842000,-4961.46,0.00020548,2]
[422149644,1778623842000,-1662.247,0.00020548,2]
[422149654,1778623842000,-3162.0,0.00020746,2]
[422149650,1778623842000,-184.51963963,0.0002058,2]
[422149646,1778623842000,-150.0,0.0002058,2]
[422149645,1778623842000,-150.0,0.0002058,2]
[422149647,1778623842000,-150.0,0.0002058,2]
[422149639,1778623842000,-4961.46,0.00020548,2]
[422149649,1778623842000,-150.0,0.0002058,2]
[422149648,1778623842000,-150.0,0.0002058,2]
[422149652,1778623842000,-150.0,0.00020662,7]
[422149651,1778623842000,-750.0,0.00020662,2]
[422149662,1778623842000,-510.0,0.00021,2]
[422149653,1778623842000,-2586.85809042,0.00020729,2]
[422149663,1778623842000,-1251.0,0.00021,2]
[422149624,1778623842000,-4961.46,0.00020548,2]
[422149642,1778623842000,-4961.46,0.00020548,2]
[422149637,1778623842000,-4961.46,0.00020548,2]
[422149596,1778623842000,-156.0,0.0002,2]
[422149625,1778623842000,-4961.46,0.00020548,2]
[422149595,1778623842000,-1251.0,0.0002,2]
[422149658,1778623842000,-174.0,0.00021,2]
[422149603,1778623842000,-308.84,0.00020358,2]
[422149608,1778623842000,-4961.46,0.00020548,2]
[422149598,1778623842000,-154.0,0.0002,2]
[422149601,1778623842000,-2494.55939289,0.00020181,2]
[422149602,1778623842000,-205.89,0.00020217,2]
[422149599,1778623842000,-330.0,0.0002,2]
[422149609,1778623842000,-4961.46,0.00020548,2]
[422149600,1778623842000,-205.89,0.0002012,2]
[422149597,1778623842000,-905.86,0.0002,2]
[422149607,1778623842000,-528.649166,0.00020547,2]
[422149605,1778623842000,-569.928885,0.0002041,30]
[422149604,1778623842000,-308.84,0.00020386,2]
[422149610,1778623842000,-4961.46,0.00020548,2]
[422149620,1778623842000,-4961.46,0.00020548,2]
[422149621,1778623842000,-4961.46,0.00020548,2]
[422149615,1778623842000,-4961.46,0.00020548,2]
[422149614,1778623842000,-4961.46,0.00020548,2]
[422149612,1778623842000,-4961.46,0.00020548,2]
[422149617,1778623842000,-4961.46,0.00020548,2]
[422149622,1778623842000,-4961.46,0.00020548,2]
[422149619,1778623842000,-4961.46,0.00020548,2]
[422149618,1778623842000,-4961.46,0.00020548,2]
[422149611,1778623842000,-4961.46,0.00020548,2]
[422149613,1778623842000,-4961.46,0.00020548,2]
[422149616,1778623842000,-4961.46,0.00020548,2]
[422149623,1778623842000,-4961.46,0.00020548,2]
[422149636,1778623842000,-4961.46,0.00020548,2]
[422149635,1778623842000,-4961.46,0.00020548,2]
[422149661,1778623842000,-174.0,0.00021,2]
[422149606,1778623842000,-308.84,0.00020448,2]
[422149655,1778623842000,-3321.0,0.00020849,2]
[422149690,1778623842000,-174.0,0.00022,2]
[422149694,1778623842000,-178.0,0.00022,2]
[422149696,1778623842000,-510.0,0.00022,2]
[422149698,1778623842000,-156.0,0.00022,2]
[422149699,1778623842000,-154.0,0.00022,2]
[422149695,1778623842000,-174.0,0.00022,2]
[422149700,1778623842000,-330.0,0.00022,2]
[422149697,1778623842000,-1251.0,0.00022,2]
[422149714,1778623842000,-150.0,0.00022467,2]
[422149704,1778623842000,-930.0,0.00022121,2]
[422149705,1778623842000,-634.72261672,0.00022174,2]
[422149706,1778623842000,-343.68,0.00022235,2]
[422149713,1778623842000,-150.0,0.00022467,2]
[422149703,1778623842000,-3629.0,0.00022121,2]
[422149707,1778623842000,-2110.84,0.00022466,2]
[422149709,1778623842000,-819.34,0.00022466,2]
[422149710,1778623842000,-905.25,0.00022466,2]
[422149712,1778623842000,-150.0,0.00022467,2]
[422149711,1778623842000,-150.0,0.00022467,2]
[422149708,1778623842000,-381.66,0.00022466,2]
[422149715,1778623842000,-150.0,0.00022467,2]
[422149716,1778623842000,-150.0,0.00022467,2]
[422149717,1778623842000,-150.0,0.00022467,2]
[422149718,1778623842000,-150.0,0.00022467,2]
[422149719,1778623842000,-450.536,0.00022467,2]
[422149722,1778623842000,-150.0,0.00022467,2]
[422149659,1778623842000,-240.0,0.00021,2]
[422149720,1778623842000,-1353.0,0.00022467,2]
[422149723,1778623842000,-1269.0,0.00022467,2]
[422149693,1778623842000,-579.61,0.00022,7]
[422149692,1778623842000,-450.0,0.00022,2]
[422149721,1778623842000,-3540.0,0.00022467,2]
[422149691,1778623842000,-240.0,0.00022,2]
[422149702,1778623842000,-1223.0,0.00022121,2]
[422149660,1778623842000,-178.0,0.00021,2]
[422149657,1778623842000,-158.0,0.00021,2]
[422149664,1778623842000,-156.0,0.00021,2]
[422149666,1778623842000,-330.0,0.00021,2]
[422149665,1778623842000,-154.0,0.00021,2]
[422149670,1778623842000,-10000.01,0.00021,2]
[422149668,1778623842000,-10000.01,0.00021,2]
[422149674,1778623842000,-2682.57183977,0.00021277,2]
[422149675,1778623842000,-474.46225647,0.00021501,15]
[422149669,1778623842000,-10000.01,0.00021,2]
[422149673,1778623842000,-229.07,0.00021205,2]
[422149667,1778623842000,-10000.01,0.00021,2]
[422149672,1778623842000,-650.0,0.00021,2]
[422149656,1778623842000,-155.0,0.00020999,2]
[422149686,1778623842000,-2022.95163431,0.00022,2]
[422149671,1778623842000,-9778.47009303,0.00021,2]
[422149680,1778623842000,-500.0,0.00021671,2]
[422149682,1778623842000,-2466.41097932,0.00021825,2]
[422149683,1778623842000,-5000.0,0.00021918,2]
[422149681,1778623842000,-1203.29759412,0.00021768,16]
[422149684,1778623842000,-905.86,0.00021935,2]
[422149701,1778623842000,-243.48705081,0.0002211,2]
[422149687,1778623842000,-160.0,0.00022,2]
[422149689,1778623842000,-158.0,0.00022,2]
[422149677,1778623842000,-1129.24381968,0.00021501,15]
[422149676,1778623842000,-1095.43423432,0.00021501,15]
[422149688,1778623842000,-300.0,0.00022,2]
[422149685,1778623842000,-278.38,0.00021975,2]
[422149679,1778623842000,-989.69588655,0.00021501,15]
[422149773,1778623843000,-496.2,0.00023576,2]
[422149771,1778623843000,-496.2,0.00023485,2]
[422149772,1778623843000,-496.2,0.0002353,2]
[422149769,1778623843000,-496.2,0.00023393,2]
[422149765,1778623843000,-496.2,0.00023211,2]
[422149762,1778623843000,-150.0,0.00023129,2]
[422149764,1778623843000,-496.2,0.00023165,2]
[422149761,1778623843000,-150.0,0.00023129,2]
[422149763,1778623843000,-273.0,0.00023129,2]
[422149774,1778623843000,-496.2,0.00023621,2]
[422149766,1778623843000,-496.2,0.00023256,2]
[422149760,1778623843000,-150.0,0.00023129,2]
[422149779,1778623843000,-496.2,0.00023849,2]
[422149770,1778623843000,-496.2,0.00023439,2]
[422149780,1778623843000,-905.86,0.0002387,2]
[422149776,1778623843000,-496.2,0.00023713,2]
[422149777,1778623843000,-496.2,0.00023758,2]
[422149778,1778623843000,-496.2,0.00023804,2]
[422149782,1778623843000,-2175.0,0.00023875,5]
[422149792,1778623843000,-510.0,0.00024,2]
[422149781,1778623843000,-2335.0,0.00023875,5]
[422149783,1778623843000,-496.2,0.00023895,2]
[422149787,1778623843000,-174.0,0.00024,2]
[422149785,1778623843000,-496.2,0.00023986,2]
[422149789,1778623843000,-500.0,0.00024,2]
[422149756,1778623843000,-330.0,0.00023,2]
[422149775,1778623843000,-496.2,0.00023667,2]
[422149758,1778623843000,-496.2,0.00023074,2]
[422149746,1778623843000,-803.8514923,0.00023,2]
[422149757,1778623843000,-496.2,0.00023028,2]
[422149727,1778623843000,-800.0,0.00022646,2]
[422149725,1778623843000,-3654.09347375,0.000226,2]
[422149729,1778623843000,-800.0,0.00022646,2]
[422149741,1778623843000,-319.0,0.00022646,2]
[422149732,1778623843000,-800.0,0.00022646,2]
[422149733,1778623843000,-800.0,0.00022646,2]
[422149731,1778623843000,-800.0,0.00022646,2]
[422149743,1778623843000,-530.40334042,0.0002271,2]
[422149736,1778623843000,-800.0,0.00022646,2]
[422149738,1778623843000,-800.0,0.00022646,2]
[422149740,1778623843000,-800.0,0.00022646,2]
[422149742,1778623843000,-202.5,0.00022691,2]
[422149759,1778623843000,-496.2,0.0002312,2]
[422149734,1778623843000,-800.0,0.00022646,2]
[422149745,1778623843000,-496.2,0.00022983,2]
[422149747,1778623843000,-158.0,0.00023,2]
[422149748,1778623843000,-174.0,0.00023,2]
[422149749,1778623843000,-240.0,0.00023,2]
[422149750,1778623843000,-178.0,0.00023,2]
[422149754,1778623843000,-156.0,0.00023,2]
[422149752,1778623843000,-510.0,0.00023,2]
[422149753,1778623843000,-1251.0,0.00023,2]
[422149751,1778623843000,-174.0,0.00023,2]
[422149755,1778623843000,-154.0,0.00023,2]
[422149767,1778623843000,-496.2,0.00023302,2]
[422149768,1778623843000,-496.2,0.00023348,2]
[422149744,1778623843000,-2105.0,0.00022805,2]
[422149784,1778623843000,-496.2,0.00023941,2]
[422149790,1778623843000,-178.0,0.00024,2]
[422149786,1778623843000,-158.0,0.00024,2]
[422149822,1778623843000,-998.11480699,0.00025,2]
[422149823,1778623843000,-4424.19967203,0.00025,2]
[422149820,1778623843000,-200.0,0.0002484,2]
[422149821,1778623843000,-279.0,0.0002484,2]
[422149824,1778623843000,-168.0,0.00025,2]
[422149827,1778623843000,-187.0,0.00025,2]
[422149825,1778623843000,-175.0,0.00025,2]
[422149826,1778623843000,-253.12706642,0.00025,2]
[422149828,1778623843000,-176.0,0.00025,2]
[422149832,1778623843000,-330.0,0.00025,2]
[422149831,1778623843000,-164.0,0.00025,2]
[422149833,1778623843000,-274.0,0.00025035,2]
[422149818,1778623843000,-200.0,0.0002484,2]
[422149834,1778623843000,-150.0,0.00025035,2]
[422149836,1778623843000,-1221.103,0.00025121,2]
[422149840,1778623843000,-180.0,0.00025215,2]
[422149837,1778623843000,-3629.0,0.00025121,2]
[422149842,1778623843000,-150.0,0.00025467,2]
[422149844,1778623843000,-150.0,0.00025467,2]
[422149848,1778623843000,-150.0,0.00025467,2]
[422149849,1778623843000,-1353.0,0.00025467,2]
[422149846,1778623843000,-150.0,0.00025467,2]
[422149847,1778623843000,-150.0,0.00025467,2]
[422149845,1778623843000,-150.0,0.00025467,2]
[422149850,1778623843000,-3540.0,0.00025467,2]
[422149788,1778623843000,-240.0,0.00024,2]
[422149838,1778623843000,-930.0,0.00025121,2]
[422149830,1778623843000,-1262.60901248,0.00025,2]
[422149835,1778623843000,-192.0,0.00025035,2]
[422149819,1778623843000,-200.0,0.0002484,2]
[422149791,1778623843000,-174.0,0.00024,2]
[422149829,1778623843000,-521.5438603,0.00025,2]
[422149794,1778623843000,-167.0,0.00024,2]
[422149795,1778623843000,-154.0,0.00024,2]
[422149793,1778623843000,-1251.0,0.00024,2]
[422149800,1778623843000,-1000.0,0.00024658,2]
[422149801,1778623843000,-178.58,0.00024658,2]
[422149799,1778623843000,-1152.13058206,0.0002421,2]
[422149804,1778623843000,-151.0,0.00024658,2]
[422149802,1778623843000,-151.0,0.00024658,2]
[422149803,1778623843000,-151.0,0.00024658,2]
[422149798,1778623843000,-333.95,0.0002411,2]
[422149796,1778623843000,-330.0,0.00024,2]
[422149797,1778623843000,-496.26428126,0.00024032,2]
[422149805,1778623843000,-2292.35,0.00024658,2]
[422149816,1778623843000,-200.0,0.0002484,2]
[422149817,1778623843000,-200.0,0.0002484,2]
[422149812,1778623843000,-2292.7,0.00024658,2]
[422149811,1778623843000,-570.97,0.00024658,2]
[422149807,1778623843000,-1133.17,0.00024658,2]
[422149808,1778623843000,-566.16,0.00024658,2]
[422149809,1778623843000,-1134.76,0.00024658,2]
[422149813,1778623843000,-200.0,0.0002484,2]
[422149814,1778623843000,-200.0,0.0002484,2]
[422149806,1778623843000,-197.61,0.00024658,2]
[422149810,1778623843000,-196.59,0.00024658,2]
[422149815,1778623843000,-200.0,0.0002484,2]
[422149890,1778623844000,-450.0,0.00026876,2]
[422149903,1778623844000,-196.59,0.00027283,2]
[422149880,1778623844000,-1134.76,0.00026408,2]
[422149893,1778623844000,-450.0,0.00026876,2]
[422149888,1778623844000,-450.0,0.00026876,2]
[422149886,1778623844000,-450.0,0.00026876,2]
[422149887,1778623844000,-450.0,0.00026876,2]
[422149884,1778623844000,-267.40471335,0.00026439,2]
[422149883,1778623844000,-2292.7,0.00026408,2]
[422149889,1778623844000,-450.0,0.00026876,2]
[422149904,1778623844000,-570.97,0.00027283,2]
[422149885,1778623844000,-500.0,0.00026575,2]
[422149892,1778623844000,-450.0,0.00026876,2]
[422149906,1778623844000,-500.0,0.00027397,2]
[422149896,1778623844000,-155.0,0.00026998,2]
[422149899,1778623844000,-197.61,0.00027283,2]
[422149894,1778623844000,-450.0,0.00026876,2]
[422149901,1778623844000,-566.16,0.00027283,2]
[422149898,1778623844000,-2292.35,0.00027283,2]
[422149902,1778623844000,-1134.76,0.00027283,2]
[422149897,1778623844000,-634.72261672,0.00027025,2]
[422149900,1778623844000,-1133.17,0.00027283,2]
[422149908,1778623844000,-500.0,0.00027397,2]
[422149916,1778623844000,-500.0,0.00027397,2]
[422149909,1778623844000,-500.0,0.00027397,2]
[422149905,1778623844000,-500.0,0.00027397,2]
[422149882,1778623844000,-570.97,0.00026408,2]
[422149895,1778623844000,-408.0,0.00026876,2]
[422149881,1778623844000,-196.59,0.00026408,30]
[422149852,1778623844000,-11175.64755268,0.000255,2]
[422149877,1778623844000,-197.61,0.00026408,30]
[422149907,1778623844000,-500.0,0.00027397,2]
[422149853,1778623844000,-151.0,0.000255,2]
[422149854,1778623844000,-2292.35,0.00025533,7]
[422149855,1778623844000,-197.61,0.00025533,7]
[422149851,1778623844000,-1269.0,0.00025467,2]
[422149856,1778623844000,-1133.17,0.00025533,7]
[422149858,1778623844000,-1134.76,0.00025533,7]
[422149859,1778623844000,-196.59,0.00025533,7]
[422149867,1778623844000,-150.0,0.00026109,2]
[422149857,1778623844000,-566.16,0.00025533,7]
[422149860,1778623844000,-570.97,0.00025533,7]
[422149861,1778623844000,-2292.7,0.00025533,7]
[422149862,1778623844000,-229.07,0.00025644,2]
[422149891,1778623844000,-450.0,0.00026876,2]
[422149865,1778623844000,-905.0,0.00026057,10]
[422149864,1778623844000,-550.0,0.00026,2]
[422149866,1778623844000,-150.0,0.00026109,2]
[422149869,1778623844000,-150.0,0.00026109,2]
[422149879,1778623844000,-566.16,0.00026408,2]
[422149868,1778623844000,-150.0,0.00026109,2]
[422149873,1778623844000,-151.0,0.00026285,2]
[422149874,1778623844000,-151.0,0.00026285,2]
[422149871,1778623844000,-151.0,0.00026285,2]
[422149876,1778623844000,-2292.35,0.00026408,2]
[422149872,1778623844000,-151.0,0.00026285,2]
[422149875,1778623844000,-309.0,0.00026396,2]
[422149870,1778623844000,-163.0,0.00026109,2]
[422149878,1778623844000,-1133.17,0.00026408,2]
[422149863,1778623844000,-905.86,0.00025806,7]
[422149917,1778623844000,-500.0,0.00027397,2]
[422149929,1778623844000,-151.0,0.00027397,2]
[422149911,1778623844000,-500.0,0.00027397,2]
[422149945,1778623844000,-150.0,0.00027659,2]
[422149956,1778623844000,-3629.0,0.00028121,2]
[422149948,1778623844000,-905.86,0.00027741,7]
[422149950,1778623844000,-600.0,0.00028,2]
[422149947,1778623844000,-169.0,0.00027659,2]
[422149949,1778623844000,-500.0,0.000278,7]
[422149955,1778623844000,-175.97,0.00028,2]
[422149954,1778623844000,-175.97,0.00028,2]
[422149952,1778623844000,-150.0,0.00028,60]
[422149951,1778623844000,-214.86625456,0.00028,10]
[422149953,1778623844000,-175.97,0.00028,2]
[422149957,1778623844000,-930.0,0.00028121,2]
[422149960,1778623844000,-197.61,0.00028158,7]
[422149946,1778623844000,-150.0,0.00027659,2]
[422149968,1778623844000,-1353.0,0.00028467,2]
[422149961,1778623844000,-1133.17,0.00028158,7]
[422149963,1778623844000,-1134.76,0.00028158,7]
[422149965,1778623844000,-570.97,0.00028158,7]
[422149962,1778623844000,-566.16,0.00028158,7]
[422149964,1778623844000,-196.59,0.00028158,7]
[422149967,1778623844000,-150.0,0.00028467,2]
[422149958,1778623844000,-1123.14,0.00028158,7]
[422149966,1778623844000,-150.0,0.00028467,2]
[422149969,1778623844000,-3540.0,0.00028467,2]
[422149970,1778623844000,-1267.0,0.00028467,2]
[422149971,1778623844000,-184.49,0.00028493,2]
[422149973,1778623844000,-152.0,0.00028612,3]
[422149914,1778623844000,-500.0,0.00027397,2]
[422149959,1778623844000,-2292.35,0.00028158,7]
[422149941,1778623844000,-150.0,0.00027659,2]
[422149972,1778623844000,-190.0,0.00028521,2]
[422149940,1778623844000,-150.0,0.00027659,2]
[422149942,1778623844000,-150.0,0.00027659,2]
[422149915,1778623844000,-500.0,0.00027397,2]
[422149912,1778623844000,-150.0,0.00027397,2]
[422149913,1778623844000,-500.0,0.00027397,2]
[422149919,1778623844000,-500.0,0.00027397,2]
[422149974,1778623844000,-1538.0,0.00028719,3]
[422149921,1778623844000,-385.64242803,0.00027397,2]
[422149931,1778623844000,-151.0,0.00027397,2]
[422149930,1778623844000,-151.0,0.00027397,2]
[422149920,1778623844000,-500.0,0.00027397,2]
[422149918,1778623844000,-500.0,0.00027397,2]
[422149922,1778623844000,-300.0,0.00027397,2]
[422149923,1778623844000,-327.548371,0.00027397,2]
[422149928,1778623844000,-151.0,0.00027397,2]
[422149910,1778623844000,-500.0,0.00027397,2]
[422149924,1778623844000,-327.548371,0.00027397,2]
[422149927,1778623844000,-151.0,0.00027397,2]
[422149937,1778623844000,-10690.96,0.00027397,10]
[422149938,1778623844000,-157.03,0.000274,7]
[422149939,1778623844000,-2390.49,0.000274,14]
[422149944,1778623844000,-150.0,0.00027659,2]
[422149943,1778623844000,-150.0,0.00027659,2]
[422149936,1778623844000,-12829.16,0.00027397,10]
[422149934,1778623844000,-151.0,0.00027397,2]
[422149935,1778623844000,-232.063881,0.00027397,2]
[422149932,1778623844000,-151.0,0.00027397,2]
[422149925,1778623844000,-327.548371,0.00027397,2]
[422149926,1778623844000,-327.548371,0.00027397,2]
[422149933,1778623844000,-151.0,0.00027397,2]
[422150014,1778623845000,-566.16,0.00029909,2]
[422150007,1778623845000,-150.0,0.0002962,2]
[422150013,1778623845000,-197.61,0.00029909,2]
[422150006,1778623845000,-150.0,0.0002962,2]
[422150005,1778623845000,-150.0,0.0002962,2]
[422150012,1778623845000,-2292.35,0.00029909,2]
[422150011,1778623845000,-75235.96392217,0.000299,2]
[422150002,1778623845000,-150.0,0.0002962,2]
[422150016,1778623845000,-570.97,0.00029909,2]
[422150009,1778623845000,-905.86,0.00029676,7]
[422150008,1778623845000,-214.0,0.0002962,2]
[422150004,1778623845000,-150.0,0.0002962,2]
[422150020,1778623845000,-2000.0,0.0003,3]
[422150017,1778623845000,-200.0,0.00029917,2]
[422150019,1778623845000,-322.40623145,0.0003,5]
[422150015,1778623845000,-196.59,0.00029909,2]
[422150026,1778623845000,-29996.49314665,0.00030137,120]
[422150021,1778623845000,-650.0,0.0003,2]
[422150024,1778623845000,-229.07,0.00030082,120]
[422150025,1778623845000,-500.0,0.00030137,2]
[422150022,1778623845000,-193.0,0.0003,14]
[422150023,1778623845000,-22861.6515053,0.00030071,2]
[422150027,1778623845000,-151.0,0.00030137,7]
[422150010,1778623845000,-300.0,0.00029899,10]
[422150036,1778623845000,-200.0,0.00030351,2]
[422150018,1778623845000,-10402.19322433,0.0003,5]
[422150003,1778623845000,-150.0,0.0002962,2]
[422149982,1778623845000,-225.902096,0.00028767,7]
[422150000,1778623845000,-39918.5045666,0.00029395,2]
[422150039,1778623845000,-200.0,0.00030351,2]
[422149975,1778623845000,-1538.0,0.00028719,3]
[422149976,1778623845000,-1535.0,0.00028719,3]
[422149977,1778623845000,-153.0,0.00028719,3]
[422149978,1778623845000,-237.60589375,0.00028719,3]
[422149979,1778623845000,-500.0,0.00028767,2]
[422149987,1778623845000,-300.0,0.00028999,10]
[422149989,1778623845000,-200000.83820517,0.00029,2]
[422149986,1778623845000,-666.0,0.00028999,10]
[422149984,1778623845000,-288.55,0.00028871,12]
[422149980,1778623845000,-225.902096,0.00028767,7]
[422149981,1778623845000,-225.902096,0.00028767,7]
[422149983,1778623845000,-225.902096,0.00028767,7]
[422149985,1778623845000,-171.84,0.00028905,2]
[422149988,1778623845000,-2034.63808283,0.00029,7]
[422149991,1778623845000,-2292.35,0.00029034,30]
[422150001,1778623845000,-2390.49,0.000296,14]
[422149994,1778623845000,-196.59,0.00029034,30]
[422149990,1778623845000,-579.61,0.00029,7]
[422149992,1778623845000,-197.61,0.00029034,30]
[422149993,1778623845000,-566.16,0.00029034,30]
[422149995,1778623845000,-570.97,0.00029034,30]
[422149998,1778623845000,-4901.6058769,0.00029395,2]
[422149997,1778623845000,-13337.03044,0.00029395,2]
[422149996,1778623845000,-1618.5962586,0.00029395,2]
[422149999,1778623845000,-2177.8051887,0.00029395,2]
[422150037,1778623845000,-200.0,0.00030351,2]
[422150028,1778623845000,-178.58,0.00030137,2]
[422150038,1778623845000,-200.0,0.00030351,2]
[422150063,1778623845000,-201.51755256,0.000308,2]
[422150062,1778623845000,-201.51755256,0.000308,2]
[422150065,1778623845000,-349.33688217,0.00031,5]
[422150066,1778623845000,-214.86625456,0.00031,30]
[422150070,1778623845000,-3041.427,0.00031121,2]
[422150068,1778623845000,-368.63,0.00031096,2]
[422150069,1778623845000,-152.0,0.00031117,4]
[422150067,1778623845000,-200.0,0.00031096,2]
[422150071,1778623845000,-930.0,0.00031121,2]
[422150072,1778623845000,-150.0,0.00031467,2]
[422150073,1778623845000,-1353.0,0.00031467,2]
[422150082,1778623845000,-510.0,0.00031644,30]
[422150064,1778623845000,-10116.45052674,0.00031,2]
[422150083,1778623845000,-1251.0,0.00031644,30]
[422150075,1778623845000,-579.61,0.000315,7]
[422150076,1778623845000,-1000.0,0.000315,7]
[422150077,1778623845000,-500.0,0.00031507,2]
[422150080,1778623845000,-154.0,0.00031644,30]
[422150081,1778623845000,-174.0,0.00031644,30]
[422150078,1778623845000,-905.86,0.00031611,7]
[422150085,1778623845000,-154.0,0.00031644,30]
[422150084,1778623845000,-156.0,0.00031644,30]
[422150087,1778623845000,-158.0,0.00031652,30]
[422150088,1778623845000,-174.0,0.00031652,30]
[422150086,1778623845000,-330.0,0.00031644,30]
[422150040,1778623845000,-200.0,0.00030351,2]
[422150079,1778623845000,-178.0,0.00031644,30]
[422150060,1778623845000,-157.03,0.000308,7]
[422150074,1778623845000,-3540.0,0.00031467,2]
[422150057,1778623845000,-566.16,0.00030784,7]
[422150061,1778623845000,-201.51755257,0.000308,2]
[422150029,1778623845000,-200.0,0.00030137,2]
[422150030,1778623845000,-857.65102233,0.00030137,2]